Cogmind - Beta 13 @@@ ROGUE MODE // 2024.03.19 @ 15:08:59 Player: opdo Result: Destroyed by Y-54 Guardian with Gatling Laser Performance ------------- Evolutions (3) 1500 Regions Visited (7) 1400 Robots Destroyed (65) 325 Value Destroyed (2019) 2019 Prototype IDs (12) 240 Alien Tech Used (0) 0 Bonus (270) 270 TOTAL SCORE: 5754 Bonus ------- Follower Combat Kills 40 Aligned with FarCom 300 Friendly Fire -70 Cogmind --------- Core Integrity 0/700 Matter 194/300 Energy 426/560 System Corruption 1% Temperature Danger (402) Movement Hovering (92) Ox1 Location -7/Factory Parts ------- > --- POWER (2) -------- Light Nuclear Core F-cell Engine > --- PROPULSION (3) --- Cooled Aerolev Unit Cooled Gravmag System Cooled Gravmag System > --- UTILITY (5) ------ Large Storage Unit Advanced Visual Processing Unit Sensor Array Seismic Detector > --- WEAPON (3) ------- Heavy Laser Cooled Pulse Rifle Advanced Variable Charge Gun > --- INVENTORY (15) --- F-cell Engine Improved Carbon-fiber Leg Improved Carbon-fiber Leg Airjet Cooled Gravmag System VTOL Module Arc Projector Heavy Laser Heavy Laser AWS/Gauss Remote Datajack Peak State ------------ > --- POWER ------------ Light Nuclear Core Light Nuclear Core > --- PROPULSION ------- Cooled Aerolev Unit Cooled Gravmag System Cooled Gravmag System > --- UTILITY ---------- Large Storage Unit Advanced Energy Well Advanced Visual Processing Unit Hacking Suite Experimental System Shield > --- WEAPON ----------- Heavy Laser Heavy Laser Advanced Variable Charge Gun > --- INVENTORY -------- Light Nuclear Core Aluminum Leg Improved Carbon-fiber Leg Airjet VTOL Module Sensor Array Seismic Detector Particle Charger Shock Rifle Heavy Laser Heavy Laser AWS/Gauss Remote Datajack [Rating: 69] Favorites ----------- Power Heavy Ion Engine Engine Heavy Ion Engine Power Core Light Nuclear Core Propulsion Aluminum Leg Leg Aluminum Leg Hover Unit Cooled Gravmag System Flight Unit VTOL Module Utility Large Storage Unit Device Seismic Detector Storage Large Storage Unit Processor Improved Terrain Scan Processor Hackware Hacking Suite Weapon Field Laser Energy Gun Field Laser Ballistic Gun AWS/Gauss Special Weapon Remote Datajack Build | -11 -10 -9 -9 -9 -8 -8 -7 ------- Run | Yrd Mat Mat Min Exi Min Mat Fac Slots Evolved 6 | . . 2 . . . 2 2 Power 1 | . . . . . . . 1 Propulsion 1 | . . 1 . . . . . Utility 3 | . . 1 . . . 1 1 Weapon 1 | . . . . . . 1 . Parts Attached 77 | 6 7 7 1 4 . 11 41 Power 11 | 1 1 1 . . . . 8 Engine 6 | 1 1 1 . . . . 3 Core 5 | . . . . . . . 5 Reactor . | . . . . . . . . Propulsion 21 | 2 2 1 1 1 . 3 11 Treads . | . . . . . . . . Leg 17 | 2 2 1 1 1 . 3 7 Wheel . | . . . . . . . . Hover 3 | . . . . . . . 3 Flight 1 | . . . . . . . 1 Utility 20 | 1 2 3 . 2 . 4 8 Device 12 | . 2 2 . 2 . 1 5 Storage 3 | 1 . 1 . . . . 1 Processor 2 | . . . . . . 1 1 Hackware 3 | . . . . . . 2 1 Protection . | . . . . . . . . Artifact . | . . . . . . . . Weapon 25 | 2 2 2 . 1 . 4 14 Energy Gun 19 | 1 1 2 . . . 4 11 Energy Cannon . | . . . . . . . . Ballistic Gun 4 | 1 1 . . 1 . . 1 Ballistic Cannon . | . . . . . . . . Launcher . | . . . . . . . . Special Weapon 2 | . . . . . . . 2 Impact Weapon . | . . . . . . . . Slashing Weapon . | . . . . . . . . Piercing Weapon . | . . . . . . . . Special Melee Weapon . | . . . . . . . . Unidentified Prototypes 12 | . . 1 . 2 . 2 7 Parts Lost 21 | . 1 . 1 . 1 1 17 Power 4 | . . . . . . . 4 Propulsion 8 | . 1 . 1 . . . 6 Utility 5 | . . . . . 1 . 4 Weapon 4 | . . . . . . 1 3 Highest Loss Streak 4 | . 1 . 1 . 1 1 4 To Critical Strikes . | . . . . . . . . Average Slot Usage (%) 91 | . 93 87 100 93 77 88 91 Engine 8 | . 14 11 11 11 11 9 4 Core 2 | . . . . . . . 6 Leg 23 | . 23 22 33 33 33 27 12 Hover 1 | . . . . . . . 5 Device 10 | . 12 21 22 22 11 2 2 Storage 9 | . 14 11 11 11 11 9 7 Processor 5 | . . . . . . 8 12 Hackware 7 | . . . . . . 15 13 Energy Gun 14 | . 14 14 22 10 . 9 19 Ballistic Gun 5 | . 14 7 . 5 11 9 1 Naked Turns . | . . . . . . . . Heaviest Build 55 | 12 14 35 38 43 40 44 55 Greatest Support 50 | 20 20 20 30 30 30 47 50 Greatest Overweight (x) 4 | 3 1 1 1 1 1 1 4 Average Overweight (x) . | . . . 1 1 1 . . Largest Inventory Capacity 15 | 8 8 15 15 15 15 15 15 Average Capacity 14 | 7 8 13 15 15 15 15 15 Most Carried 15 | 3 8 15 13 15 15 15 15 Average Carried 12 | 1 5 10 12 12 13 14 13 Final Capacity 15 | 8 8 15 15 15 15 15 15 Final Carried 15 | 2 7 13 12 12 15 14 12 Class Distribution -------------------- 50% | Mutant 27% | Hacker-Skirmisher 13% | Scavenger-Skirmisher 4% | Skirmisher Dominant Class ---------------- Mutant | -10/Materials Mutant | -9/Materials Mutant | -9/Mines Mutant | -9/Exiles Mutant | -8/Mines Hacker-Skirmisher | -8/Materials Scavenger-Skirmisher | -7/Factory Resources | -11 -10 -9 -9 -9 -8 -8 -7 ----------- Run | Yrd Mat Mat Min Exi Min Mat Fac Matter Collected 1020 | 163 182 74 20 . 28 116 437 Remotely . | . . . . . . . . Salvage Created 2232 | . 219 325 55 . 56 913 664 Parts 137 | . 15 19 11 . 6 60 26 Haulers Intercepted 1 | . . 1 . . . . . Recyclers Shooed 1 | . . . . . . . 1 Parts Field Recycled . | . . . . . . . . Retrieved Matter . | . . . . . . . . Parts Self-Destructed . | . . . . . . . . Prevented . | . . . . . . . . Kills | -11 -10 -9 -9 -9 -8 -8 -7 ------- Run | Yrd Mat Mat Min Exi Min Mat Fac Combat Hostiles Destroyed 55 | . 8 8 4 . 3 17 15 Guns 52 | . 8 8 4 . 3 17 12 AOE 1 | . . . . . . . 1 Classes Destroyed 12 | . 2 3 . . . 5 2 Worker 1 | . . . . . . . 1 Builder 2 | . . . . . . 2 . Tunneler 1 | . . . . . . 1 . Hauler 1 | . . 1 . . . . . Recycler 1 | . . . . . . 1 . Operator 1 | . . . . . . 1 . Watcher 3 | . . 1 . . . 2 . Swarmer 22 | . 4 3 4 . 3 3 5 Grunt 21 | . 4 4 . . . 10 3 Sentry 7 | . . 1 . . . 3 3 Hunter 3 | . . . . . . 1 2 Programmer 2 | . . . . . . . 2 Best Kill Streak 7 | . 3 3 3 . 3 7 6 Combat Bots Only 5 | . 3 3 3 . 3 5 3 Max Kills in Single Turn 4 | . 2 1 1 . 1 4 1 Gunslinging 1 | . 1 . . . . . . Exploded 1 | . . . . . . . 1 Melee . | . . . . . . . . Uniques/NPCs Destroyed . | . . . . . . . . Combat | -11 -10 -9 -9 -9 -8 -8 -7 -------- Run | Yrd Mat Mat Min Exi Min Mat Fac Hostile Shots Fired 510 | . 53 53 36 . 9 43 316 Missed 163 | . 15 16 12 . 2 13 105 Damage Taken 4009 | . 495 389 190 . 59 482 2394 Core 1034 | . 142 87 31 . . 68 706 Absorbed by Shields . | . . . . . . . . Regen/Repaired (Parts) 92 | . . 11 . . . 81 . Core Remaining (%) 75 | 100 43 . . . 70 87 . Volleys Fired 149 | . 23 37 9 . . 21 59 Largest 3 | . 2 2 2 . . 1 3 Hottest 207 | . 60 126 126 . . 63 207 Shots Fired 391 | . 46 74 15 . 8 93 155 Gun 391 | . 46 74 15 . 8 93 155 Cannon . | . . . . . . . . Launcher . | . . . . . . . . Special . | . . . . . . . . Kinetic 148 | . 23 27 . . 8 72 18 Thermal 238 | . 23 47 15 . . 21 132 Explosive . | . . . . . . . . Electromagnetic 5 | . . . . . . . 5 Robot Hit Streak 10 | . 6 6 5 . 4 10 9 Robot Miss Streak 7 | . 2 5 4 . 2 2 7 Penetration Max . | . . . . . . . . Secondary Targets 5 | . 2 2 . . . . 1 Max Gunslinging Chain 1 | . 1 1 . . . . 1 Autonomous 92 | . . . . . 8 72 12 Shots Hit Robots 239 | . 31 40 8 . 5 71 84 Core Hits 100 | . 13 16 4 . 3 36 28 Critical Kills . | . . . . . . . . Critical Parts Destroyed 1 | . . . . . . 1 . Critical Strikes 6 | . . 1 . . . 2 3 Burn 5 | . . 1 . . . 1 3 Destroy 1 | . . . . . . 1 . Melee Attacks . | . . . . . . . . Impact . | . . . . . . . . Slashing . | . . . . . . . . Piercing . | . . . . . . . . Sneak Attacks . | . . . . . . . . Combat Hostiles . | . . . . . . . . Follow-up Attacks . | . . . . . . . . Damage Inflicted 5253 | . 299 514 151 . 136 2241 1912 Guns 4830 | . 294 505 151 . 133 1984 1763 Cannons . | . . . . . . . . Explosions 382 | . . . . . . 239 143 Melee . | . . . . . . . . Ramming 41 | . 5 9 . . 3 18 6 Kinetic 2458 | . 125 124 . . 133 1763 313 Thermal 2705 | . 169 381 151 . . 460 1544 Explosive . | . . . . . . . . Electromagnetic 49 | . . . . . . . 49 Impact . | . . . . . . . . Slashing . | . . . . . . . . Piercing . | . . . . . . . . Highest Corruption 1 | . . . . . . . 1 Average Corruption 1 | . . . . . . . 1 Corruption Purged . | . . . . . . . . Corruption Blocked 8 | . . . . . . . 8 Effects 8 | . . . . . . . 8 Matter Fused 4 | . . . . . . . 4 Heat Flow Errors 1 | . . . . . . . 1 Energy Discharges 1 | . . . . . . . 1 Data Loss (minor) 1 | . . . . . . . 1 Misfires 1 | . . . . . . . 1 Overload Shots . | . . . . . . . . Overflow Damage 9 | . . . . . . . 9 Projectiles . | . . . . . . . . Explosions 9 | . . . . . . . 9 Melee . | . . . . . . . . Knockbacks . | . . . . . . . . Impact . | . . . . . . . . Kinetic . | . . . . . . . . Secondary . | . . . . . . . . Self-Inflicted Damage 124 | . . . . . . . 124 Shots 2 | . . . . . . . 2 Rammed . | . . . . . . . . Targets Rammed 13 | . 2 2 . . 2 5 2 Kicked 13 | . 2 2 . . 2 5 2 Crushed . | . . . . . . . . Highest Temperature 639 | . 82 321 379 . . 138 639 Average Temperature 169 | . 34 67 185 . . 46 251 Received Heat Transfer 945 | . 132 156 . . . 207 450 Effects 52 | . . . 2 . . . 50 Shutdowns 10 | . . . . . . . 10 Energy Bleed 9 | . . . . . . . 9 Interference 13 | . . . 2 . . . 11 Matter Decay 4 | . . . . . . . 4 Short Circuit 5 | . . . . . . . 5 Damage (minor) 1 | . . . . . . . 1 Damage (major) 8 | . . . . . . . 8 Damage (core) 2 | . . . . . . . 2 Siege Activations . | . . . . . . . . Robots Corrupted . | . . . . . . . . Combat Hostiles . | . . . . . . . . Parts Fried . | . . . . . . . . Impact Corruptions . | . . . . . . . . Robots Melted 2 | . . . . . . . 2 Combat Hostiles 2 | . . . . . . . 2 Parts Melted 19 | . . 3 . . . 3 13 Heat Transferred 5439 | . 375 892 296 . . 755 3121 Parts Sabotaged . | . . . . . . . . Parts Stolen . | . . . . . . . . Parts Stripped . | . . . . . . . . Power Chain Reactions . | . . . . . . . . Alert | -11 -10 -9 -9 -9 -8 -8 -7 ------- Run | Yrd Mat Mat Min Exi Min Mat Fac Peak Influence 389 | . 186 167 143 . 80 389 223 Initial 123 | . . . 33 . . 31 123 Average 99 | . 94 95 96 . 78 131 93 Maximum Alert Level 1 | . . . . . . 1 1 Low Security (%) 93 | 100 100 100 100 . 100 68 99 Level 1 6 | . . . . . . 31 . Level 2 . | . . . . . . . . Level 3 . | . . . . . . . . Level 4 . | . . . . . . . . Level 5 . | . . . . . . . . High Security . | . . . . . . . . Max Security . | . . . . . . . . Squads Dispatched 10 | . 1 1 . . . 2 6 Investigation 4 | . . . . . . 2 2 Extermination 1 | . . . . . . . 1 Reinforcement 5 | . 1 1 . . . . 3 Assault . | . . . . . . . . Garrison . | . . . . . . . . Intercept . | . . . . . . . . Searches Triggered . | . . . . . . . . Construction Impeded 1 | . . . . . . . 1 Haulers Reinforced 1 | . . . . . . . 1 Active Scanning Responses . | . . . . . . . . Cargo Convoy Interrupts 1 | . . . . . . . 1 Stealth | -11 -10 -9 -9 -9 -8 -8 -7 --------- Run | Yrd Mat Mat Min Exi Min Mat Fac Distress Signals 4 | . 1 1 . . . 1 1 Communications Jammed . | . . . . . . . . Distress Signals . | . . . . . . . . Times Spotted 81 | . 16 12 4 . 3 22 24 Peak Tracking Total 5 | . 5 3 4 . 2 5 5 Tactical Retreats 3 | . 2 . 1 . . . . Traps | -11 -10 -9 -9 -9 -8 -8 -7 ------- Run | Yrd Mat Mat Min Exi Min Mat Fac Traps Triggered 5 | . . . . . . 3 2 Indirectly . | . . . . . . . . Trap Hack Attempts . | . . . . . . . . Triggered . | . . . . . . . . Disarmed . | . . . . . . . . Reprogrammed . | . . . . . . . . Reused . | . . . . . . . . Traps Extracted . | . . . . . . . . Installed . | . . . . . . . . Triggered 4 | . . . . . . . 4 Machines | -11 -10 -9 -9 -9 -8 -8 -7 ---------- Run | Yrd Mat Mat Min Exi Min Mat Fac Machines Disabled 8 | . . . . . . 4 4 Max in Single Turn 3 | . . . . . . 2 3 Machines Repaired . | . . . . . . . . Machines Dismantled . | . . . . . . . . Machines Sabotaged . | . . . . . . . . Overloaded Fab Kills . | . . . . . . . . Hacking | -11 -10 -9 -9 -9 -8 -8 -7 --------- Run | Yrd Mat Mat Min Exi Min Mat Fac Machines Accessed 20 | . 3 3 . 2 . 4 8 Terminals 10 | . 1 . . . . 3 6 Fabricators . | . . . . . . . . Repair Stations 2 | . . 1 . . . 1 . Recycling Units 4 | . 2 1 . . . . 1 Scanalyzers 1 | . . 1 . . . . . Garrison Access 1 | . . . . . . . 1 Total Hacks 47 | . 5 6 . 11 . 11 14 Successful 29 | . 2 2 . 11 . 6 8 Failed 18 | . 3 4 . . . 5 6 Catastrophic 4 | . . 1 . . . . 3 Database Lockouts . | . . . . . . . . Manual 23 | . 4 2 . 1 . 9 7 Terminals 22 | . 2 . . . . 9 11 Fabricators . | . . . . . . . . Repair Stations 5 | . . 3 . . . 2 . Recycling Units 6 | . 3 2 . . . . 1 Scanalyzers 1 | . . 1 . . . . . Garrison Access 2 | . . . . . . . 2 Terminal Hacks 19 | . . . . 11 . 2 6 Record 14 | . . . . 11 . . 3 Open DSF 2 | . . . . . . . 2 Branch Access Points 1 | . . . . . . 1 . Zone Layout 2 | . . . . . . 1 1 Fabricator Hacks . | . . . . . . . . Repair Station Hacks 4 | . . 2 . . . 2 . Scan Component 2 | . . 1 . . . 1 . Repair 2 | . . 1 . . . 1 . Recycling Unit Hacks 1 | . . . . . . . 1 Retrieve Components 1 | . . . . . . . 1 Scanalyzer . | . . . . . . . . Garrison Access Hacks . | . . . . . . . . Unauthorized Hacks 5 | . 2 . . . . 2 1 Terminals 2 | . . . . . . 2 . Assimilate 2 | . . . . . . 2 . Fabricators . | . . . . . . . . Repair Stations . | . . . . . . . . Recycling Units 2 | . 2 . . . . . . Mask 2 | . 2 . . . . . . Scanalyzers . | . . . . . . . . Garrison Access 1 | . . . . . . . 1 Reprogram 1 | . . . . . . . 1 Data Cores Recovered . | . . . . . . . . Used . | . . . . . . . . Hacking Detections 12 | . 3 2 . . . 3 4 Full Trace Events . | . . . . . . . . Feedback Events . | . . . . . . . . Feedback Blocked . | . . . . . . . . Robot Schematics Acquired . | . . . . . . . . Robots Built . | . . . . . . . . Authchips . | . . . . . . . . Time . | . . . . . . . . Total Robot Build Rating . | . . . . . . . . Part Schematics Acquired . | . . . . . . . . Parts Built . | . . . . . . . . Authchips . | . . . . . . . . Time . | . . . . . . . . Total Part Build Rating . | . . . . . . . . Parts Repaired 2 | . . 1 . . . 1 . Time 64 | . . 38 . . . 26 . Parts Recycled . | . . . . . . . . Recycled Matter . | . . . . . . . . Retrieved Matter . | . . . . . . . . Retrieved Components . | . . . . . . . . Parts Scanalyzed . | . . . . . . . . Part Schematics Acquired . | . . . . . . . . Parts Damaged . | . . . . . . . . Bothacking | -11 -10 -9 -9 -9 -8 -8 -7 ------------ Run | Yrd Mat Mat Min Exi Min Mat Fac Used RIF Installer . | . . . . . . . . Robots Hacked . | . . . . . . . . Non-combat . | . . . . . . . . Combat . | . . . . . . . . Robot Hacks Applied . | . . . . . . . . Relay Couplers Released . | . . . . . . . . Fabnet Peak Effective % . | . . . . . . . . Robots Rewired . | . . . . . . . . Allies Hacked . | . . . . . . . . Hacks Repelled . | . . . . . . . . Allies | -11 -10 -9 -9 -9 -8 -8 -7 -------- Run | Yrd Mat Mat Min Exi Min Mat Fac Total Allies 2 | . . . . . . . 2 Largest Group 2 | . . . . . . . 2 Highest-Rated Group 32 | . . . . . . . 32 Highest-Rated Ally 16 | . . . . . . . 16 Total Orders . | . . . . . . . . Ally Attacks 21 | . . . . . . . 21 Total Damage 171 | . . . . . . . 171 Kills 2 | . . . . . . . 2 Allies Corrupted . | . . . . . . . . Allies Melted . | . . . . . . . . Intel | -11 -10 -9 -9 -9 -8 -8 -7 ------- Run | Yrd Mat Mat Min Exi Min Mat Fac Robot Analysis Total . | . . . . . . . . Derelict Logs Recovered 1 | . . . 1 . . . . Drone Launches . | . . . . . . . . Drone Recoveries . | . . . . . . . . Exploration | -11 -10 -9 -9 -9 -8 -8 -7 ------------- Run | Yrd Mat Mat Min Exi Min Mat Fac Turns Passed 4680 | 62 415 591 539 483 266 803 1521 Spaces Moved 2407 | 38 231 237 270 250 133 359 889 Core 15 | 15 . . . . . . . Treads . | . . . . . . . . Legs 2047 | 23 231 237 270 250 133 359 544 Wheels . | . . . . . . . . Hover 345 | . . . . . . . 345 Flight . | . . . . . . . . Fastest Speed 50 | 50 120 120 190 190 190 123 92 Average Speed 155 | 129 133 166 190 190 190 146 136 Slowest Speed 400 | 200 190 190 190 190 190 193 400 Overloaded Moves . | . . . . . . . . Propulsion Burnouts . | . . . . . . . . Robots Hopped . | . . . . . . . . Cave-ins Triggered . | . . . . . . . . Exploration Rate (%) 32 | 4 42 28 55 43 26 41 24 Regions Visited 7 Branch Regions 3 Pre-discovered Areas 1 | . . . 1 . . . . Known Exits Taken . | . . . . . . . . Unknown Exits Taken 7 | 1 1 1 1 1 1 1 . Scrap Searched 2 | . . . 1 . 1 . . Spaces Dug . | . . . . . . . . Terrain Destroyed 96 | . . . . . 7 74 15 Melee . | . . . . . . . . Projectile 49 | . . . . . 7 39 3 AOE 47 | . . . . . . 35 12 Terrain Rammed . | . . . . . . . . Walls Destroyed . | . . . . . . . . Machines Disabled . | . . . . . . . . Actions | -11 -10 -9 -9 -9 -8 -8 -7 --------- Run | Yrd Mat Mat Min Exi Min Mat Fac Total 3100 | 51 294 365 281 259 145 620 1085 Wait 319 | . 19 62 2 . 8 198 30 Move 2401 | 37 230 237 269 249 132 358 889 Hop . | . . . . . . . . Pick Up 90 | 8 10 15 . 2 3 15 37 Fast Attach . | . . . . . . . . Attach 43 | 6 2 3 1 1 . 5 25 Detach 2 | . . . . 1 . . 1 Swap 35 | . 5 4 . 3 . 7 16 Drop 44 | . 3 6 . 3 . 11 21 Fire 149 | . 23 37 9 . . 21 59 Melee . | . . . . . . . . Ram . | . . . . . . . . Kick 12 | . 2 1 . . 2 5 2 Crush . | . . . . . . . . Escape Stasis 5 | . . . . . . . 5 Rewire . | . . . . . . . . Trap . | . . . . . . . . Miscellaneous . | . . . . . . . . Route ------- -11/Scrapyard -10/Materials -9/Materials -9/Mines (discovered 2 exits: *Mat / *Exi) -9/Exiles -8/Mines -8/Materials -7/Factory History --------- Turn | Location | Event 26 | -11/Scrapyard | Discovered new exit (range 15) 63 | -11/Scrapyard | Entered Materials 305 | -10/Materials | Build established: Mutant 387 | -10/Materials | Core integrity fell below 50% 460 | -10/Materials | Discovered new exit (range 16) 478 | -10/Materials | Entered another Materials area 478 | -9/Materials | Evolved 2 slots: Propulsion x1, Utility x1 991 | -9/Materials | Repaired Lgt. Nuclear Core 1004 | -9/Materials | Discovered new exit (range 9) 1069 | -9/Materials | Entered Mines 1258 | -9/Mines | Learned location of Storage (-7) 1562 | -9/Mines | Discovered new exit (range 6) 1598 | -9/Mines | Deemed a non-threat by the Exiles lab entrance 1600 | -9/Mines | Discovered new exit (range 5) 1608 | -9/Mines | Entered Exiles 1633 | -9/Exiles | Discovered new exit (range 15) 1660 | -9/Exiles | Met 8R-AWN 1688 | -9/Exiles | Met EX-HEX 1749 | -9/Exiles | Met EX-BIN 1770 | -9/Exiles | Aligned with FarCom system 1772 | -9/Exiles | Given EX-Vault access code 1819 | -9/Exiles | Opened EX-Vault 1837 | -9/Exiles | Found Prototype Device 1838 | -9/Exiles | Identified Trap Reconfigurator 1846 | -9/Exiles | Found Prototype Ballistic Gun 1848 | -9/Exiles | Identified AWS/Gauss 1931 | -9/Exiles | Warned to stay clear of 0b10 Research branches 2091 | -9/Exiles | Left Exiles lab with AWS/Gauss 2091 | -9/Exiles | Entered Mines 2346 | -8/Mines | Discovered new exit (range 5) 2357 | -8/Mines | Entered Materials 2357 | -8/Materials | Evolved 2 slots: Utility x1, Weapon x1 2406 | -8/Materials | Repaired Aluminum Leg 2761 | -8/Materials | Build established: Hacker-Skirmisher 3125 | -8/Materials | Discovered new exit (range 16) 3160 | -8/Materials | Entered Factory 3160 | -7/Factory | Evolved 2 slots: Power x1, Utility x1 3291 | -7/Factory | Core integrity fell below 50% 3317 | -7/Factory | Lost 4 parts (1p1n1u1w) 3678 | -7/Factory | Lost 3 parts (1p1n1w) 4045 | -7/Factory | Build established: Scavenger-Skirmisher 4059 | -7/Factory | Cargo convoy interrupted 4264 | -7/Factory | Core integrity fell below 20% 4283 | -7/Factory | Found Prototype Hackware 4284 | -7/Factory | Identified Exp. System Shield 4374 | -7/Factory | Build established: Hacker-Skirmisher 4681 | -7/Factory | Destroyed by Y-54 Guardian with Gatling Laser Last Messages --------------- 04583_ Acquired 75 matter. 04611_ System corrupted: FCS attempts to trigger Adv. Variable Charge Gun. 04611_ System corrupted: Adv. Variable Charge Gun misfires. 04614_ Connecting with DSF Access... 04637_ Acquired Prototype Energy Gun. 04638_ Identified Cld. Pulse Rifle. 04642_ Dropped Broken F-cell Engine. 04672_ S-27 Virus destroyed. 04673_ R-06 Scavenger collects VTOL Module. 04676_ VTOL Module melted. 04676_ S-27 Virus destroyed. 04676_ Particle Charger destroyed. 04676_ R-06 Scavenger collects VTOL Module. 04678_ R-06 Scavenger collects Autogun. 04679_ S-27 Virus destroyed. 04680_ Overheating: Energy bleed (-119). 04680_ R-06 Scavenger collects Lgt. Nuclear Core. Map ----- +----------------------------------------------------+ | ?????????????????????????????????????????????????? | | ?????????????????????????????????????????????????? | | ?????????????????????????????????????????????????? | | ?????????????????????????????????????????????????? | | ?????????????????????????????????????????????????? | | ?????????????????????????????????????????????????? | | ?????????????????????????????????????????????????? | | ?????????????????????????????????????????????????? | | ?????????????????????????????????????????????????? | | ??????????????????????????????????????? ?????????? | | ?????????????????????????????????????? #???????? | | ?????????????????????????????????????? #???????? | | ????????????????????????????????????? #???????? | | ????????????????????????????????????? #???????? | | ???????????????????????????????????? #???????? | | ??????????????????????????????????## ###?????? | | ?????????????????????????????????? #?????? | | ??????????????????????????######## ?????? | | ????????????????????####### ??????? | | ????????????????????? ??????? | | ??????????????????????? Y ?????????? | | ????????????????????????? ???????????? | | ?????????????############## ??????????????? | | ?????????????# # #????????????????? | | ?????????????# # #????????????????? | | ?????????????# ! @*[rr #????????????????? | | ?????????????# r%% ##???????????????? | | ?????????????# #= T#???????????????? | | ?????????????# # #???????????????? | | ?????????????# # ##???????????????? | | ?????????????# # #????????????????? | | ?????????????# # #????????????????? | | ?????????????# !! # #????????????????? | | ?????????????# # #????????????????? | | ?????????????# # #????????????????? | | ?????##+################### #????????????????? | | ?????? !]] #?# #????????????????? | | ??????? !]] #?# #????????????????? | | ? ????? """ !]] """ #?# ? #????????????????? | | ? ????? """ """ #?# #????????????????? | | ? ???# """ ! ! """ #?# #????????????????? | | ? ???# #?# #????????????????? | | ? ???# #?# #????????????????? | | ? ???#= / ### ###??????????????? | | ? ???????###########+#### #??????????????? | | ? ?????????????# #??????????????? | | ? ?????????????# #??????????????? | | # #????????????# #??????????????? | | # ############## ##?????????????? | | # # / ! # = ##?????????????? | +----------------------------------------------------+ Best States ------------- Heat Dissipation 34 Energy Generation 28 Energy Capacity 560 Matter Stores 300 Matter Capacity 300 Sight Range 20 Robot Scan Range 14 Terrain Scan Range 16 Terrain Scan Density 110 ECM Strength 1 Evasion (%) 55 Particle Charging 15 Offensive Hacking 10 Defensive Hacking 16 Item Schematics ----------------- None Robot Schematics ------------------ None Fabricated ------------ Nothing Alien Tech Used ----------------- None Achievements -------------- None Challenges ------------ None Game ------ Seed MakeshiftAlertMaul Manual? 0 Play Time 00:38:57 Cumulative 14.5 hours Start 2024.03.19 @ 14:33:46 End 2024.03.19 @ 15:08:59 Sessions 1 Manual Loads 0 Difficulty Rogue Special Mode None Game No. 36 Rogue 34 Adventurer 2 Explorer 0 Win Type - Total 0 Types 0/0/0/0/0/0/0/0/0 Lore% 19 Gallery% 29 Achievement% 20 Wizard Run 0 Options --------- Layout 1 ASCII 0 Keyboard 0 Movement Arrows Keybinds 0 Fullscreen 1 Font 24/Smallcaps Map View 50x35 Zoom Use 0% Tactical HUD 1 Map Filters NONE Filters NONE Steam 1 RUN: 1687cdeb-effc-46cd-bdc3-82ae9c33fe3a